[Event "Titled Tuesday Blitz November 01 Late 2022"]
[White "Bersamina, Paulo"]
[Black "Sanchez, Robert"]
[WhiteFideId "5206995"]
[BlackFideId "2034360"]
[WhiteElo "2332"]
[BlackElo "2406"]
[Result "1-0"]
[Round "01"]
[TimeControl "180+1"]
[Date "2022.11.02"]
[WhiteClock "0:02:21"]
[BlackClock "0:00:53"]

1. e4 {[%clk 0:03:00]}  e6 {[%clk 0:02:59]} 2. d4 {[%clk 0:03:00]}  d5 {[%clk 0:02:59]} 3. Nc3 {[%clk 0:03:00]}  Nf6 {[%clk 0:02:59]} 4. Bg5 {[%clk 0:03:00]}  Be7 {[%clk 0:02:59]} 5. e5 {[%clk 0:02:59]}  Nfd7 {[%clk 0:02:59]} 6. h4 {[%clk 0:03:00]}  h6 {[%clk 0:03:00]} 7. Bxe7 {[%clk 0:02:59]}  Qxe7 {[%clk 0:03:01]} 8. h5 {[%clk 0:03:00]}  a6 {[%clk 0:02:59]} 9. f4 {[%clk 0:02:57]}  c5 {[%clk 0:02:59]} 10. Nf3 {[%clk 0:02:58]}  Nc6 {[%clk 0:02:58]} 11. Qd2 {[%clk 0:02:58]}  O-O {[%clk 0:02:55]} 12. O-O-O {[%clk 0:02:58]}  c4 {[%clk 0:02:55]} 13. g4 {[%clk 0:02:56]}  b5 {[%clk 0:02:54]} 14. g5 {[%clk 0:02:50]}  Nb6 {[%clk 0:02:48]} 15. Qg2 {[%clk 0:02:40]}  hxg5 {[%clk 0:02:45]} 16. h6 {[%clk 0:02:36]}  g6 {[%clk 0:02:42]} 17. Qxg5 {[%clk 0:02:35]}  Qxg5 {[%clk 0:02:37]} 18. fxg5 {[%clk 0:02:35]}  Ne7 {[%clk 0:02:22]} 19. Bh3 {[%clk 0:02:33]}  Nf5 {[%clk 0:02:15]} 20. Bxf5 {[%clk 0:02:32]}  exf5 {[%clk 0:02:15]} 21. Ne2 {[%clk 0:02:33]}  Be6 {[%clk 0:02:14]} 22. Nf4 {[%clk 0:02:34]}  Kh7 {[%clk 0:02:14]} 23. Kd2 {[%clk 0:02:28]}  b4 {[%clk 0:02:13]} 24. a3 {[%clk 0:02:27]}  a5 {[%clk 0:02:13]} 25. axb4 {[%clk 0:02:27]}  axb4 {[%clk 0:02:14]} 26. Ra1 {[%clk 0:02:26]}  Rxa1 {[%clk 0:01:57]} 27. Rxa1 {[%clk 0:02:25]}  Ra8 {[%clk 0:01:57]} 28. Rxa8 {[%clk 0:02:20]}  Nxa8 {[%clk 0:01:58]} 29. b3 {[%clk 0:02:21]}  Nb6 {[%clk 0:01:52]} 30. Kc1 {[%clk 0:02:20]}  Bd7 {[%clk 0:01:24]} 31. Kb1 {[%clk 0:02:19]}  Bc8 {[%clk 0:01:17]} 32. Kc1 {[%clk 0:02:18]}  Bd7 {[%clk 0:01:17]} 33. Kb1 {[%clk 0:02:19]}  Bc8 {[%clk 0:01:17]} 34. Ng1 {[%clk 0:02:19]}  Be6 {[%clk 0:01:14]} 35. Kc1 {[%clk 0:02:18]}  Bc8 {[%clk 0:01:12]} 36. Kb1 {[%clk 0:02:19]}  Bd7 {[%clk 0:01:11]} 37. Nge2 {[%clk 0:02:20]}  Bc8 {[%clk 0:01:10]} 38. Ng3 {[%clk 0:02:19]}  Be6 {[%clk 0:01:08]} 39. Nge2 {[%clk 0:02:20]}  Bc8 {[%clk 0:01:07]} 40. Nc1 {[%clk 0:02:21]}  Be6 {[%clk 0:01:06]} 41. Na2 {[%clk 0:02:20]}  cxb3 {[%clk 0:00:55]} 42. cxb3 {[%clk 0:02:21]}  Nc8 {[%clk 0:00:52]} 43. Nxb4 {[%clk 0:02:21]}  Ne7 {[%clk 0:00:53]} 44. Kb2 {[%clk 0:02:21]} 1-0


[Site "https://www.chess.com"]

[Event "Titled Tuesday Blitz November 01 Late 2022"]
[White "Besedes, Danilo"]
[Black "Dahlgren, James Allen"]
[WhiteFideId "946796"]
[BlackFideId "22256873"]
[WhiteElo "2352"]
[BlackElo "2212"]
[Result "1/2-1/2"]
[Round "01"]
[TimeControl "180+1"]
[Date "2022.11.02"]
[WhiteClock "0:01:09"]
[BlackClock "0:00:53"]

1. d3 {[%clk 0:03:00]}  e6 {[%clk 0:02:59]} 2. e4 {[%clk 0:03:00]}  c5 {[%clk 0:03:00]} 3. Nf3 {[%clk 0:03:01]}  d5 {[%clk 0:03:00]} 4. Be2 {[%clk 0:03:00]}  Nf6 {[%clk 0:03:00]} 5. Nc3 {[%clk 0:03:00]}  Nc6 {[%clk 0:03:00]} 6. O-O {[%clk 0:02:59]}  Be7 {[%clk 0:03:00]} 7. a3 {[%clk 0:02:54]}  O-O {[%clk 0:02:59]} 8. Bf4 {[%clk 0:02:52]}  a6 {[%clk 0:02:51]} 9. Re1 {[%clk 0:02:49]}  b5 {[%clk 0:02:51]} 10. e5 {[%clk 0:02:46]}  Nh5 {[%clk 0:02:43]} 11. Bd2 {[%clk 0:02:31]}  g6 {[%clk 0:02:38]} 12. Bh6 {[%clk 0:02:29]}  Ng7 {[%clk 0:02:36]} 13. Bf1 {[%clk 0:02:19]}  f5 {[%clk 0:02:22]} 14. exf6 {[%clk 0:02:16]}  Bxf6 {[%clk 0:02:22]} 15. Rb1 {[%clk 0:02:06]}  e5 {[%clk 0:02:08]} 16. Ne2 {[%clk 0:02:03]}  Bg4 {[%clk 0:01:46]} 17. Ng3 {[%clk 0:02:03]}  Nd4 {[%clk 0:01:40]} 18. Be2 {[%clk 0:01:59]}  Nxe2+ {[%clk 0:01:36]} 19. Qxe2 {[%clk 0:01:59]}  Re8 {[%clk 0:01:24]} 20. h3 {[%clk 0:01:59]}  Be6 {[%clk 0:01:22]} 21. Nxe5 {[%clk 0:01:54]}  Bf7 {[%clk 0:01:16]} 22. Nxf7 {[%clk 0:01:52]}  Rxe2 {[%clk 0:01:11]} 23. Nxd8 {[%clk 0:01:51]}  Rxe1+ {[%clk 0:01:11]} 24. Rxe1 {[%clk 0:01:52]}  Rxd8 {[%clk 0:01:11]} 25. b3 {[%clk 0:01:47]}  Nf5 {[%clk 0:01:05]} 26. Nxf5 {[%clk 0:01:46]}  gxf5 {[%clk 0:01:04]} 27. Re6 {[%clk 0:01:47]}  Kf7 {[%clk 0:01:00]} 28. Rxa6 {[%clk 0:01:46]}  Re8 {[%clk 0:00:58]} 29. Kf1 {[%clk 0:01:24]}  Bc3 {[%clk 0:00:58]} 30. g3 {[%clk 0:01:24]}  Re1+ {[%clk 0:00:57]} 31. Kg2 {[%clk 0:01:24]}  Re2 {[%clk 0:00:58]} 32. Rb6 {[%clk 0:01:14]}  Bd4 {[%clk 0:00:55]} 33. Rxb5 {[%clk 0:01:10]}  Rxf2+ {[%clk 0:00:55]} 34. Kh1 {[%clk 0:01:09]}  Rf1+ {[%clk 0:00:52]} 35. Kg2 {[%clk 0:01:09]}  Rf2+ {[%clk 0:00:53]} 36. Kh1 {[%clk 0:01:09]}  Rf1+ {[%clk 0:00:53]} 1/2-1/2


[Site "https://www.chess.com"]

[Event "Titled Tuesday Blitz November 01 Late 2022"]
[White "Budisavljevic, Luka"]
[Black "Kamsky, Gata"]
[WhiteFideId "960047"]
[BlackFideId "2000024"]
[WhiteElo "2424"]
[BlackElo "2666"]
[Result "0-1"]
[Round "01"]
[TimeControl "180+1"]
[Date "2022.11.01"]
[WhiteClock "0:00:10"]
[BlackClock "0:00:37"]

1. c4 {[%clk 0:02:57]}  f5 {[%clk 0:02:54]} 2. d4 {[%clk 0:02:56]}  Nf6 {[%clk 0:02:53]} 3. g3 {[%clk 0:02:57]}  g6 {[%clk 0:02:51]} 4. Bg2 {[%clk 0:02:58]}  Bg7 {[%clk 0:02:51]} 5. Nf3 {[%clk 0:02:59]}  d6 {[%clk 0:02:51]} 6. O-O {[%clk 0:03:00]}  O-O {[%clk 0:02:50]} 7. Nc3 {[%clk 0:02:58]}  c6 {[%clk 0:02:50]} 8. Re1 {[%clk 0:02:54]}  Na6 {[%clk 0:02:49]} 9. e4 {[%clk 0:02:49]}  fxe4 {[%clk 0:02:48]} 10. Nxe4 {[%clk 0:02:50]}  Nxe4 {[%clk 0:02:47]} 11. Rxe4 {[%clk 0:02:51]}  Bf5 {[%clk 0:02:47]} 12. Re1 {[%clk 0:02:50]}  e5 {[%clk 0:02:39]} 13. dxe5 {[%clk 0:02:42]}  dxe5 {[%clk 0:02:38]} 14. Qxd8 {[%clk 0:02:41]}  Raxd8 {[%clk 0:02:37]} 15. Bg5 {[%clk 0:02:42]}  Rde8 {[%clk 0:02:34]} 16. Nd2 {[%clk 0:02:26]}  Nb4 {[%clk 0:02:32]} 17. Be4 {[%clk 0:02:16]}  a5 {[%clk 0:02:02]} 18. a3 {[%clk 0:01:39]}  Nd3 {[%clk 0:01:56]} 19. Bxd3 {[%clk 0:01:13]}  Bxd3 {[%clk 0:01:55]} 20. b4 {[%clk 0:00:57]}  e4 {[%clk 0:01:52]} 21. Ra2 {[%clk 0:00:57]}  axb4 {[%clk 0:01:47]} 22. axb4 {[%clk 0:00:58]}  Bc3 {[%clk 0:01:45]} 23. Rc1 {[%clk 0:00:42]}  Bxb4 {[%clk 0:01:43]} 24. Be3 {[%clk 0:00:41]}  Ra8 {[%clk 0:01:39]} 25. Rxa8 {[%clk 0:00:40]}  Rxa8 {[%clk 0:01:37]} 26. Nb3 {[%clk 0:00:38]}  Ba3 {[%clk 0:01:28]} 27. Ra1 {[%clk 0:00:36]}  Bxc4 {[%clk 0:01:21]} 28. Nd2 {[%clk 0:00:36]}  Bd5 {[%clk 0:01:21]} 29. Bc5 {[%clk 0:00:34]}  Bxc5 {[%clk 0:01:20]} 30. Rxa8+ {[%clk 0:00:34]}  Kf7 {[%clk 0:01:18]} 31. Kf1 {[%clk 0:00:31]}  e3 {[%clk 0:01:17]} 32. fxe3 {[%clk 0:00:31]}  Bxe3 {[%clk 0:01:17]} 33. Ke2 {[%clk 0:00:30]}  Bd4 {[%clk 0:01:12]} 34. Rb8 {[%clk 0:00:25]}  c5 {[%clk 0:01:09]} 35. Nf3 {[%clk 0:00:23]}  Bf6 {[%clk 0:01:08]} 36. Rc8 {[%clk 0:00:20]}  Bc6 {[%clk 0:01:07]} 37. Rc7+ {[%clk 0:00:14]}  Ke6 {[%clk 0:01:04]} 38. Rxh7 {[%clk 0:00:14]}  c4 {[%clk 0:01:01]} 39. Ne1 {[%clk 0:00:12]}  c3 {[%clk 0:00:58]} 40. h4 {[%clk 0:00:11]}  Be4 {[%clk 0:00:57]} 41. Rc7 {[%clk 0:00:11]}  Be5 {[%clk 0:00:56]} 42. Rc8 {[%clk 0:00:10]}  Kd7 {[%clk 0:00:54]} 43. Rc4 {[%clk 0:00:09]}  Bd5 {[%clk 0:00:52]} 44. Rb4 {[%clk 0:00:09]}  Kc6 {[%clk 0:00:49]} 45. g4 {[%clk 0:00:08]}  b5 {[%clk 0:00:45]} 46. h5 {[%clk 0:00:08]}  g5 {[%clk 0:00:42]} 47. h6 {[%clk 0:00:08]}  Bc4+ {[%clk 0:00:40]} 48. Kd1 {[%clk 0:00:06]}  Kc5 {[%clk 0:00:40]} 49. Rb1 {[%clk 0:00:05]}  b4 {[%clk 0:00:39]} 50. h7 {[%clk 0:00:06]}  b3 {[%clk 0:00:38]} 51. Ra1 {[%clk 0:00:06]}  c2+ {[%clk 0:00:38]} 52. Nxc2 {[%clk 0:00:06]}  bxc2+ {[%clk 0:00:38]} 53. Kxc2 {[%clk 0:00:07]}  Bxa1 {[%clk 0:00:39]} 54. Kd2 {[%clk 0:00:08]}  Bd4 {[%clk 0:00:39]} 55. Ke1 {[%clk 0:00:07]}  Kd6 {[%clk 0:00:39]} 56. h8=Q {[%clk 0:00:08]}  Bxh8 {[%clk 0:00:38]} 57. Kd1 {[%clk 0:00:09]}  Bd4 {[%clk 0:00:37]} 58. Kd2 {[%clk 0:00:10]} 0-1


[Site "https://www.chess.com"]

[Event "Titled Tuesday Blitz November 01 Late 2022"]
[White "Burke, Paul"]
[Black "Burcu, Cagatay"]
[WhiteFideId "2605767"]
[BlackFideId "6310630"]
[WhiteElo "1872"]
[BlackElo "2231"]
[Result "0-1"]
[Round "01"]
[TimeControl "180+1"]
[Date "2022.11.02"]
[WhiteClock "0:01:09"]
[BlackClock "0:01:56"]

1. e4 {[%clk 0:03:00]}  c6 {[%clk 0:02:59]} 2. d4 {[%clk 0:03:00]}  d5 {[%clk 0:03:00]} 3. exd5 {[%clk 0:03:00]}  cxd5 {[%clk 0:03:01]} 4. c4 {[%clk 0:03:00]}  Nf6 {[%clk 0:03:00]} 5. Nc3 {[%clk 0:02:59]}  g6 {[%clk 0:03:01]} 6. Nf3 {[%clk 0:02:59]}  Bg7 {[%clk 0:03:01]} 7. Be2 {[%clk 0:02:59]}  O-O {[%clk 0:03:02]} 8. O-O {[%clk 0:02:59]}  Nc6 {[%clk 0:03:02]} 9. h3 {[%clk 0:02:58]}  Bf5 {[%clk 0:03:01]} 10. a3 {[%clk 0:02:55]}  dxc4 {[%clk 0:03:00]} 11. Bxc4 {[%clk 0:02:54]}  Rc8 {[%clk 0:02:59]} 12. Ba2 {[%clk 0:02:50]}  Ne4 {[%clk 0:02:58]} 13. Be3 {[%clk 0:02:31]}  Nxc3 {[%clk 0:02:55]} 14. bxc3 {[%clk 0:02:30]}  Na5 {[%clk 0:02:55]} 15. Rc1 {[%clk 0:02:22]}  Qd6 {[%clk 0:02:51]} 16. Qa4 {[%clk 0:02:13]}  b6 {[%clk 0:02:47]} 17. Qb4 {[%clk 0:02:12]}  Qc7 {[%clk 0:02:24]} 18. c4 {[%clk 0:02:04]}  Be4 {[%clk 0:02:21]} 19. Nd2 {[%clk 0:01:59]}  Ba8 {[%clk 0:02:18]} 20. c5 {[%clk 0:01:49]}  Qb7 {[%clk 0:02:09]} 21. Nf3 {[%clk 0:01:43]}  Nc6 {[%clk 0:02:08]} 22. Qa4 {[%clk 0:01:39]}  b5 {[%clk 0:02:03]} 23. Qc2 {[%clk 0:01:37]}  Nxd4 {[%clk 0:02:00]} 24. Bxd4 {[%clk 0:01:32]}  Bxd4 {[%clk 0:02:01]} 25. c6 {[%clk 0:01:32]}  Rxc6 {[%clk 0:02:00]} 26. Bd5 {[%clk 0:01:09]}  Rxc2 {[%clk 0:01:57]} 27. Bxb7 {[%clk 0:01:09]}  Bxf2+ {[%clk 0:01:56]} 0-1


[Site "https://www.chess.com"]

[Event "Titled Tuesday Blitz November 01 Late 2022"]
[White "Cadena M, Gustavo Adolfo"]
[Black "Jimenez Fernandez, Rebeca"]
[WhiteFideId "4404815"]
[BlackFideId "32070934"]
[WhiteElo "2241"]
[BlackElo "1946"]
[Result "1-0"]
[Round "01"]
[TimeControl "180+1"]
[Date "2022.11.02"]
[WhiteClock "0:00:39"]
[BlackClock "0:00:06"]

1. d4 {[%clk 0:03:00]}  d5 {[%clk 0:02:58]} 2. c4 {[%clk 0:03:00]}  c6 {[%clk 0:02:56]} 3. Nc3 {[%clk 0:02:59]}  Nf6 {[%clk 0:02:55]} 4. Nf3 {[%clk 0:02:59]}  e6 {[%clk 0:02:55]} 5. g3 {[%clk 0:02:54]}  dxc4 {[%clk 0:02:49]} 6. Bg2 {[%clk 0:02:53]}  Be7 {[%clk 0:02:50]} 7. a4 {[%clk 0:02:52]}  O-O {[%clk 0:02:39]} 8. O-O {[%clk 0:02:51]}  c5 {[%clk 0:02:29]} 9. Bg5 {[%clk 0:02:42]}  Nc6 {[%clk 0:02:18]} 10. dxc5 {[%clk 0:02:37]}  Qa5 {[%clk 0:02:11]} 11. Nb5 {[%clk 0:02:22]}  a6 {[%clk 0:01:54]} 12. Bd2 {[%clk 0:02:21]}  Qd8 {[%clk 0:01:44]} 13. Nd6 {[%clk 0:02:21]}  Bxd6 {[%clk 0:01:38]} 14. cxd6 {[%clk 0:02:22]}  Qxd6 {[%clk 0:01:39]} 15. Qc2 {[%clk 0:02:16]}  Nd4 {[%clk 0:01:04]} 16. Nxd4 {[%clk 0:02:13]}  Qxd4 {[%clk 0:01:04]} 17. Be3 {[%clk 0:02:12]}  Qe5 {[%clk 0:00:46]} 18. Qxc4 {[%clk 0:02:08]}  Qxb2 {[%clk 0:00:43]} 19. Rfd1 {[%clk 0:01:03]}  b5 {[%clk 0:00:30]} 20. Qc7 {[%clk 0:01:02]}  Nd5 {[%clk 0:00:26]} 21. Bxd5 {[%clk 0:01:01]}  exd5 {[%clk 0:00:26]} 22. axb5 {[%clk 0:00:56]}  Qxe2 {[%clk 0:00:22]} 23. b6 {[%clk 0:00:52]}  Bh3 {[%clk 0:00:17]} 24. Qf4 {[%clk 0:00:49]}  Rab8 {[%clk 0:00:14]} 25. Qh4 {[%clk 0:00:47]}  Qg4 {[%clk 0:00:13]} 26. Qxg4 {[%clk 0:00:46]}  Bxg4 {[%clk 0:00:14]} 27. Rxd5 {[%clk 0:00:46]}  Bf3 {[%clk 0:00:13]} 28. Rf5 {[%clk 0:00:46]}  Bb7 {[%clk 0:00:13]} 29. h4 {[%clk 0:00:44]}  Rbc8 {[%clk 0:00:13]} 30. Re5 {[%clk 0:00:44]}  Rc2 {[%clk 0:00:13]} 31. Re7 {[%clk 0:00:44]}  Bf3 {[%clk 0:00:08]} 32. Rb1 {[%clk 0:00:43]}  Rfc8 {[%clk 0:00:08]} 33. b7 {[%clk 0:00:41]}  Rb8 {[%clk 0:00:08]} 34. Bf4 {[%clk 0:00:39]}  Rxb7 {[%clk 0:00:06]} 35. Re8# {[%clk 0:00:39]} 1-0


[Site "https://www.chess.com"]

[Event "Titled Tuesday Blitz November 01 Late 2022"]
[White "Chigaev, Maksim"]
[Black "Poliakova, Varvara"]
[WhiteFideId "4108116"]
[BlackFideId "13518313"]
[WhiteElo "2537"]
[BlackElo "1938"]
[Result "1-0"]
[Round "01"]
[TimeControl "180+1"]
[Date "2022.11.01"]
[WhiteClock "0:01:13"]
[BlackClock "0:01:10"]

1. Nf3 {[%clk 0:03:00]}  f5 {[%clk 0:02:57]} 2. d3 {[%clk 0:02:59]}  d6 {[%clk 0:02:56]} 3. e4 {[%clk 0:02:58]}  Nf6 {[%clk 0:02:56]} 4. Nc3 {[%clk 0:02:55]}  e5 {[%clk 0:02:54]} 5. g3 {[%clk 0:02:55]}  Nc6 {[%clk 0:02:53]} 6. Bh3 {[%clk 0:02:55]}  fxe4 {[%clk 0:02:48]} 7. Bxc8 {[%clk 0:02:52]}  Qxc8 {[%clk 0:02:47]} 8. dxe4 {[%clk 0:02:53]}  Qh3 {[%clk 0:02:44]} 9. Bg5 {[%clk 0:02:48]}  Be7 {[%clk 0:02:37]} 10. Bxf6 {[%clk 0:02:43]}  Bxf6 {[%clk 0:02:38]} 11. Nd5 {[%clk 0:02:43]}  O-O-O {[%clk 0:02:36]} 12. c3 {[%clk 0:02:44]}  Rhf8 {[%clk 0:02:32]} 13. Qe2 {[%clk 0:02:43]}  Qg4 {[%clk 0:02:25]} 14. Nd2 {[%clk 0:02:36]}  Qxe2+ {[%clk 0:02:25]} 15. Kxe2 {[%clk 0:02:37]}  Ne7 {[%clk 0:02:22]} 16. h4 {[%clk 0:02:28]}  c6 {[%clk 0:02:20]} 17. Nxe7+ {[%clk 0:02:28]}  Bxe7 {[%clk 0:02:21]} 18. Nc4 {[%clk 0:02:29]}  Kc7 {[%clk 0:02:19]} 19. Rad1 {[%clk 0:02:28]}  Bf6 {[%clk 0:02:17]} 20. Ne3 {[%clk 0:02:27]}  h5 {[%clk 0:02:12]} 21. Rd3 {[%clk 0:02:23]}  Rd7 {[%clk 0:02:11]} 22. Rhd1 {[%clk 0:02:22]}  g6 {[%clk 0:02:11]} 23. a4 {[%clk 0:02:20]}  a5 {[%clk 0:02:10]} 24. Nc4 {[%clk 0:02:19]}  Be7 {[%clk 0:02:00]} 25. Nxe5 {[%clk 0:02:18]}  Rdd8 {[%clk 0:01:47]} 26. Nxg6 {[%clk 0:02:18]}  Rf7 {[%clk 0:01:46]} 27. Nf4 {[%clk 0:01:56]}  Rh8 {[%clk 0:01:42]} 28. c4 {[%clk 0:01:50]}  Rh6 {[%clk 0:01:38]} 29. c5 {[%clk 0:01:25]}  Bxh4 {[%clk 0:01:25]} 30. Rxd6 {[%clk 0:01:12]}  Rxd6 {[%clk 0:01:19]} 31. cxd6+ {[%clk 0:01:13]}  Kd7 {[%clk 0:01:10]} 32. e5 {[%clk 0:01:13]} 1-0


[Site "https://www.chess.com"]

[Event "Titled Tuesday Blitz November 01 Late 2022"]
[White "Coelho, Ramyres Santana"]
[Black "Ashiku, Franc"]
[WhiteFideId "2120690"]
[BlackFideId "4700066"]
[WhiteElo "1888"]
[BlackElo "2306"]
[Result "0-1"]
[Round "01"]
[TimeControl "180+1"]
[Date "2022.11.02"]
[WhiteClock "0:01:05"]
[BlackClock "0:00:33"]

1. e4 {[%clk 0:03:00]}  a6 {[%clk 0:02:58]} 2. d4 {[%clk 0:02:55]}  d5 {[%clk 0:02:58]} 3. Nc3 {[%clk 0:02:55]}  dxe4 {[%clk 0:02:57]} 4. Nxe4 {[%clk 0:02:56]}  g6 {[%clk 0:02:56]} 5. Nf3 {[%clk 0:02:50]}  Bg7 {[%clk 0:02:56]} 6. Be2 {[%clk 0:02:48]}  Nf6 {[%clk 0:02:53]} 7. Nxf6+ {[%clk 0:02:47]}  exf6 {[%clk 0:02:51]} 8. Be3 {[%clk 0:02:48]}  O-O {[%clk 0:02:51]} 9. Qd2 {[%clk 0:02:49]}  Re8 {[%clk 0:02:49]} 10. O-O-O {[%clk 0:02:48]}  Be6 {[%clk 0:02:41]} 11. Kb1 {[%clk 0:02:47]}  Qd5 {[%clk 0:02:41]} 12. c4 {[%clk 0:02:43]}  Bf5+ {[%clk 0:02:30]} 13. Ka1 {[%clk 0:02:42]}  Qd7 {[%clk 0:02:28]} 14. Nh4 {[%clk 0:02:34]}  a5 {[%clk 0:02:15]} 15. Nxf5 {[%clk 0:02:29]}  Qxf5 {[%clk 0:02:16]} 16. g4 {[%clk 0:02:25]}  Qd7 {[%clk 0:02:14]} 17. h4 {[%clk 0:02:25]}  a4 {[%clk 0:02:09]} 18. g5 {[%clk 0:02:22]}  a3 {[%clk 0:02:07]} 19. b3 {[%clk 0:02:18]}  f5 {[%clk 0:02:04]} 20. Kb1 {[%clk 0:02:01]}  Nc6 {[%clk 0:02:00]} 21. d5 {[%clk 0:01:54]}  Ne5 {[%clk 0:01:49]} 22. Bd4 {[%clk 0:01:51]}  Rad8 {[%clk 0:01:36]} 23. f4 {[%clk 0:01:49]}  Ng4 {[%clk 0:01:26]} 24. Bxg4 {[%clk 0:01:47]}  Bxd4 {[%clk 0:01:22]} 25. Qxd4 {[%clk 0:01:46]}  fxg4 {[%clk 0:01:23]} 26. h5 {[%clk 0:01:44]}  Qf5+ {[%clk 0:01:22]} 27. Ka1 {[%clk 0:01:43]}  Re4 {[%clk 0:01:12]} 28. Qc3 {[%clk 0:01:29]}  Qxf4 {[%clk 0:00:56]} 29. hxg6 {[%clk 0:01:26]}  fxg6 {[%clk 0:00:44]} 30. Rde1 {[%clk 0:01:17]}  Rde8 {[%clk 0:00:40]} 31. Rxe4 {[%clk 0:01:16]}  Rxe4 {[%clk 0:00:41]} 32. Re1 {[%clk 0:01:08]}  Rxe1+ {[%clk 0:00:33]} 33. Qxe1 {[%clk 0:01:09]}  Qd4+ {[%clk 0:00:33]} 34. Kb1 {[%clk 0:01:05]}  Qb2# {[%clk 0:00:33]} 0-1


[Site "https://www.chess.com"]

[Event "Titled Tuesday Blitz November 01 Late 2022"]
[White "Constantinou, Peter"]
[Black "Leitao, Rafael"]
[WhiteFideId "413038"]
[BlackFideId "2101246"]
[WhiteElo "2230"]
[BlackElo "2609"]
[Result "0-1"]
[Round "01"]
[TimeControl "180+1"]
[Date "2022.11.02"]
[WhiteClock "0:02:05"]
[BlackClock "0:01:56"]

1. e4 {[%clk 0:02:59]}  c5 {[%clk 0:02:58]} 2. Nf3 {[%clk 0:02:59]}  d6 {[%clk 0:02:55]} 3. Bb5+ {[%clk 0:02:57]}  Nc6 {[%clk 0:02:55]} 4. O-O {[%clk 0:02:56]}  Bd7 {[%clk 0:02:54]} 5. Re1 {[%clk 0:02:56]}  Nf6 {[%clk 0:02:53]} 6. c3 {[%clk 0:02:56]}  a6 {[%clk 0:02:54]} 7. Bf1 {[%clk 0:02:55]}  Bg4 {[%clk 0:02:54]} 8. h3 {[%clk 0:02:56]}  Bxf3 {[%clk 0:02:53]} 9. Qxf3 {[%clk 0:02:56]}  g6 {[%clk 0:02:54]} 10. a4 {[%clk 0:02:42]}  Bg7 {[%clk 0:02:53]} 11. Na3 {[%clk 0:02:43]}  O-O {[%clk 0:02:51]} 12. Nc4 {[%clk 0:02:35]}  Nd7 {[%clk 0:02:50]} 13. a5 {[%clk 0:02:33]}  Nde5 {[%clk 0:02:47]} 14. Nxe5 {[%clk 0:02:33]}  Bxe5 {[%clk 0:02:46]} 15. d3 {[%clk 0:02:30]}  Nxa5 {[%clk 0:02:43]} 16. Bh6 {[%clk 0:02:30]}  Re8 {[%clk 0:02:31]} 17. Qg4 {[%clk 0:02:26]}  Nc6 {[%clk 0:02:27]} 18. f4 {[%clk 0:02:26]}  Bg7 {[%clk 0:02:25]} 19. Bxg7 {[%clk 0:02:24]}  Kxg7 {[%clk 0:02:26]} 20. g3 {[%clk 0:02:15]}  e6 {[%clk 0:02:16]} 21. f5 {[%clk 0:02:09]}  Qf6 {[%clk 0:02:04]} 22. fxe6 {[%clk 0:02:05]}  Ne5 {[%clk 0:01:59]} 23. Qf4 {[%clk 0:02:05]}  Nf3+ {[%clk 0:01:56]} 0-1


[Site "https://www.chess.com"]

[Event "Titled Tuesday Blitz November 01 Late 2022"]
[White "Danielyan, Vahe"]
[Black "Silva, Caio Henrique Angelico"]
[WhiteFideId "13304828"]
[BlackFideId "22777210"]
[WhiteElo "2421"]
[BlackElo "1990"]
[Result "0-1"]
[Round "01"]
[TimeControl "180+1"]
[Date "2022.11.02"]
[WhiteClock "0:01:07"]
[BlackClock "0:00:43"]

1. e4 {[%clk 0:02:57]}  c6 {[%clk 0:02:59]} 2. Nc3 {[%clk 0:02:58]}  d5 {[%clk 0:02:57]} 3. Nf3 {[%clk 0:02:58]}  Bg4 {[%clk 0:02:56]} 4. h3 {[%clk 0:02:58]}  Bxf3 {[%clk 0:02:55]} 5. Qxf3 {[%clk 0:02:59]}  e6 {[%clk 0:02:56]} 6. d4 {[%clk 0:02:58]}  Nf6 {[%clk 0:02:53]} 7. Bg5 {[%clk 0:02:58]}  Be7 {[%clk 0:02:51]} 8. O-O-O {[%clk 0:02:57]}  dxe4 {[%clk 0:02:45]} 9. Nxe4 {[%clk 0:02:57]}  Nxe4 {[%clk 0:02:40]} 10. Bxe7 {[%clk 0:02:58]}  Qxe7 {[%clk 0:02:41]} 11. Qxe4 {[%clk 0:02:59]}  Nd7 {[%clk 0:02:41]} 12. Bc4 {[%clk 0:02:59]}  Nf6 {[%clk 0:02:39]} 13. Qe2 {[%clk 0:02:58]}  O-O-O {[%clk 0:02:39]} 14. Rhe1 {[%clk 0:02:57]}  Qd6 {[%clk 0:02:30]} 15. g3 {[%clk 0:02:57]}  c5 {[%clk 0:02:13]} 16. dxc5 {[%clk 0:02:48]}  Qxc5 {[%clk 0:02:14]} 17. Bb3 {[%clk 0:02:47]}  Rxd1+ {[%clk 0:02:05]} 18. Rxd1 {[%clk 0:02:48]}  Rd8 {[%clk 0:02:05]} 19. Qc4 {[%clk 0:02:43]}  Qxc4 {[%clk 0:01:58]} 20. Bxc4 {[%clk 0:02:43]}  Ne4 {[%clk 0:01:39]} 21. Rxd8+ {[%clk 0:01:29]}  Kxd8 {[%clk 0:01:40]} 22. Bd3 {[%clk 0:01:29]}  Nxf2 {[%clk 0:01:36]} 23. Bxh7 {[%clk 0:01:29]}  Nxh3 {[%clk 0:01:36]} 24. Be4 {[%clk 0:01:28]}  b6 {[%clk 0:01:33]} 25. Kd2 {[%clk 0:01:28]}  Ke7 {[%clk 0:01:28]} 26. a4 {[%clk 0:01:27]}  Kd6 {[%clk 0:01:28]} 27. b4 {[%clk 0:01:27]}  Ng5 {[%clk 0:01:26]} 28. Bg2 {[%clk 0:01:25]}  f5 {[%clk 0:01:23]} 29. Ke3 {[%clk 0:01:25]}  e5 {[%clk 0:01:23]} 30. c4 {[%clk 0:01:25]}  Ne6 {[%clk 0:01:21]} 31. Bh3 {[%clk 0:01:21]}  f4+ {[%clk 0:01:17]} 32. gxf4 {[%clk 0:01:19]}  exf4+ {[%clk 0:01:17]} 33. Kd3 {[%clk 0:01:17]}  g5 {[%clk 0:01:05]} 34. Bg4 {[%clk 0:01:15]}  Nf8 {[%clk 0:01:02]} 35. Ke4 {[%clk 0:01:15]}  Ng6 {[%clk 0:00:58]} 36. Kf5 {[%clk 0:01:12]}  Ne5 {[%clk 0:00:56]} 37. Be2 {[%clk 0:01:06]}  f3 {[%clk 0:00:53]} 38. Bf1 {[%clk 0:01:06]}  g4 {[%clk 0:00:53]} 39. Kf4 {[%clk 0:01:07]}  Ke6 {[%clk 0:00:49]} 40. a5 {[%clk 0:01:07]}  bxa5 {[%clk 0:00:48]} 41. bxa5 {[%clk 0:01:08]}  Kd6 {[%clk 0:00:45]} 42. c5+ {[%clk 0:01:07]}  Kxc5 {[%clk 0:00:43]} 43. Kxe5 {[%clk 0:01:07]}  g3 {[%clk 0:00:43]} 0-1


[Site "https://www.chess.com"]